bitfinex-derivatives/quotes_BNBF0:USTF0_20250112
["timestamp","ask_amount","ask_price","bid_price","bid_amount"]
[1736695971671,1.07696405,695.0,693.69,0.28831322]
[1736695972173,1.50461545,695.01,693.69,0.28831322]
[1736695972762,1.0767244,694.98,693.69,0.28831322]
[1736695975571,1.0767244,695.0,693.69,0.28831322]
[1736695976775,1.50461545,695.01,693.69,0.28831322]
[1736695977877,1.0767244,695.0,693.69,0.28831322]
[1736695978078,0.26466107,694.99,693.69,0.28831322]
[1736695978375,1.0767244,695.0,693.69,0.28831322]
[1736695978574,0.26466165,694.99,693.69,0.28831322]
[1736695978975,1.0767244,694.96,693.69,0.28831322]
[1736695979172,0.26465916,694.95,693.69,0.28831322]
[1736695979978,0.26465916,694.94,693.69,0.28831322]
[1736695980178,0.26465916,694.93,693.69,0.28831322]
[1736695980379,0.26465916,694.92,693.69,0.28831322]
[1736695980571,0.26465916,694.91,693.69,0.28831322]
[1736695980773,1.0767244,694.96,693.69,0.28831322]
[1736695980973,0.26466924,694.95,693.69,0.28831322]
[1736695982378,1.0767244,694.96,693.69,0.28831322]
[1736695983179,1.50461545,695.01,693.69,0.28831322]
[1736695985283,1.50403561,695.14,693.69,0.28831322]
[1736695985680,1.0758148,695.09,693.69,0.28831322]
[1736695986389,1.50403561,695.14,693.69,0.28831322]
[1736695988381,1.0758148,695.12,693.69,0.28831322]
[1736695988587,0.2646173,695.11,693.69,0.28831322]
[1736695989385,1.0758148,695.06,693.69,0.28831322]
[1736695990185,1.50374315,695.22,693.69,0.28831322]
[1736695990186,1.0758148,695.04,693.69,0.28831322]
[1736695990981,1.0758148,695.06,693.69,0.28831322]
[1736695991780,1.0758148,695.05,693.69,0.28831322]
[1736695992387,1.0758148,695.06,693.69,0.28831322]
[1736695992687,0.26461377,695.05,693.69,0.28831322]
[1736695993589,1.0758148,695.02,693.69,0.28831322]
[1736695993784,0.26462855,695.01,693.69,0.28831322]
[1736695994582,1.0758148,694.97,693.69,0.28831322]
[1736695995491,0.26464234,694.96,693.69,0.28831322]
[1736695995692,1.0758148,694.93,693.69,0.28831322]
[1736695997893,1.0758148,694.92,693.69,0.28831322]
[1736695998594,1.0758148,694.91,693.69,0.28831322]
[1736695999491,1.0758148,694.9,693.69,0.28831322]
[1736696001094,1.0758148,694.89,693.69,0.28831322]
[1736696003089,1.0758148,694.88,693.69,0.28831322]
[1736696004497,1.0758148,694.9,693.69,0.28831322]
[1736696006499,1.0758148,694.89,693.69,0.28831322]
[1736696007399,1.0758148,694.93,693.69,0.28831322]
[1736696008294,1.0758148,694.94,693.69,0.28831322]
[1736696010203,1.0758148,694.91,693.69,0.28831322]
[1736696011004,1.0758148,694.93,693.69,0.28831322]
[1736696011804,1.0758148,694.98,693.69,0.28831322]
[1736696012806,1.0758148,695.03,693.69,0.28831322]
[1736696013605,1.0758148,695.04,693.69,0.28831322]
[1736696014807,1.0758148,695.05,693.69,0.28831322]
[1736696016007,1.0758148,695.0,693.69,0.28831322]
[1736696017710,1.0758148,694.97,693.69,0.28831322]
[1736696020208,1.0758148,694.96,693.69,0.28831322]
[1736696021411,1.0758148,694.97,693.69,0.28831322]
[1736696022109,1.0758148,694.92,693.69,0.28831322]
[1736696024612,1.0758148,694.94,693.69,0.28831322]
[1736696025610,1.0758148,694.95,693.69,0.28831322]
[1736696026309,1.0758148,694.9,693.69,0.28831322]
[1736696027213,1.0758148,694.88,693.69,0.28831322]
[1736696028410,1.50368359,695.11,693.69,0.28831322]
[1736696028411,1.0758148,694.86,693.69,0.28831322]
[1736696030008,1.0758148,694.84,693.69,0.28831322]
[1736696030911,0.26468982,694.83,693.69,0.28831322]
[1736696031107,1.0758148,694.78,693.69,0.28831322]
[1736696032014,1.0758148,694.79,693.69,0.28831322]
[1736696033012,1.0758148,694.81,693.69,0.28831322]
[1736696033816,1.0758148,694.82,693.69,0.28831322]
[1736696034813,1.0758148,694.84,693.69,0.28831322]
[1736696035915,1.0758148,694.91,693.69,0.28831322]
[1736696037516,1.0758148,694.9,693.69,0.28831322]
[1736696039320,1.0758148,694.93,693.69,0.28831322]
[1736696040220,1.0758148,694.94,693.69,0.28831322]
[1736696041317,1.0758148,694.93,693.69,0.28831322]
[1736696041917,1.0758148,694.94,693.69,0.28831322]
[1736696042723,1.0758148,694.97,693.69,0.28831322]
[1736696043725,1.0758148,694.96,693.69,0.28831322]
[1736696044527,1.50400311,695.05,693.69,0.28831322]
[1736696044528,1.0758148,694.95,693.69,0.28831322]
[1736696045524,1.50400311,695.05,693.69,0.28831322]
[1736696045525,1.0758148,694.96,693.69,0.28831322]
[1736696046126,1.0758148,694.95,693.69,0.28831322]
[1736696046927,1.0758148,694.96,693.69,0.28831322]
[1736696047527,1.50400311,695.05,693.69,0.28831322]
[1736696047829,0.26465877,695.04,693.69,0.28831322]
[1736696048223,4.20037902,696.79,693.69,0.28831322]
[1736696048424,2.16873491,696.81,693.69,0.28831322]
[1736696048425,1.0768234,694.97,693.69,0.28831322]
[1736696049329,1.0768234,695.06,693.69,0.28831322]
[1736696049724,0.2646363,695.05,693.69,0.28831322]
[1736696049930,1.0768234,695.06,693.69,0.28831322]
[1736696050227,0.26463657,695.05,693.69,0.28831322]
[1736696050429,1.0768234,695.02,693.69,0.28831322]
[1736696051322,0.26465366,695.01,693.69,0.28831322]
[1736696051526,1.0768234,694.99,693.69,0.28831322]
[1736696052229,1.0768234,694.97,693.69,0.28831322]
[1736696053330,1.0768234,694.96,693.69,0.28831322]
[1736696054530,1.0768234,694.95,693.69,0.28831322]
[1736696055429,1.0768234,694.94,693.69,0.28831322]
[1736696056328,1.0768234,694.93,693.69,0.28831322]
[1736696057430,1.0768234,694.92,693.69,0.28831322]
[1736696058231,1.0768234,694.88,693.69,0.28831322]
[1736696059230,1.0768234,694.81,693.69,0.28831322]
[1736696060230,1.0768234,694.8,693.69,0.28831322]
[1736696063228,1.50394353,695.04,693.69,0.28831322]
[1736696063229,1.0768234,694.88,693.69,0.28831322]
[1736696065033,1.0768234,694.89,693.69,0.28831322]
[1736696065729,1.0768234,694.88,693.69,0.28831322]
[1736696066335,1.0768234,694.87,693.69,0.28831322]
[1736696067432,1.0768234,694.85,693.69,0.28831322]
[1736696068636,1.0768234,694.93,693.69,0.28831322]
[1736696070230,1.0768234,694.91,693.69,0.28831322]
[1736696072034,1.0768234,694.89,693.69,0.28831322]
[1736696073937,1.0768234,694.9,693.69,0.28831322]
[1736696074938,1.0768234,694.94,693.69,0.28831322]
[1736696076442,1.0768234,694.92,693.69,0.28831322]
[1736696077037,1.0768234,694.93,693.69,0.28831322]
[1736696078041,1.50413854,694.95,693.69,0.28831322]
[1736696079037,1.0768234,694.9,693.69,0.28831322]
[1736696081241,1.0768234,694.89,693.69,0.28831322]
[1736696082143,1.0768234,694.91,693.69,0.28831322]
[1736696083041,1.0768234,694.87,693.69,0.28831322]
[1736696085342,1.0768234,694.86,693.69,0.28831322]
[1736696086937,1.0768234,694.85,693.69,0.28831322]
[1736696088242,1.0768234,694.83,693.69,0.28831322]
[1736696090644,1.0768234,694.82,693.69,0.28831322]
[1736696092445,1.0768234,694.8,693.69,0.28831322]
[1736696093440,1.0768234,694.75,693.69,0.28831322]
[1736696096447,1.0768234,694.81,693.69,0.28831322]
[1736696098047,1.0768234,694.79,693.69,0.28831322]
[1736696099150,1.0768234,694.74,693.69,0.28831322]
[1736696100049,1.0768234,694.73,693.69,0.28831322]
[1736696101450,1.0768234,694.74,693.69,0.28831322]
[1736696102853,1.0768234,694.65,693.69,0.28831322]
[1736696103749,1.0768234,694.72,693.69,0.28831322]
[1736696105047,1.0768234,694.73,693.69,0.28831322]
[1736696105750,1.0768234,694.74,693.69,0.28831322]
[1736696106952,1.0768234,694.76,693.69,0.28831322]
[1736696108657,1.50413312,694.94,693.69,0.28831322]
[1736696110054,2.58095652,694.94,693.69,0.28831322]
[1736696112758,1.0768234,694.92,693.69,0.28831322]
[1736696112959,0.26471023,694.91,693.69,0.28831322]
[1736696113560,1.0768234,694.68,693.69,0.28831322]
[1736696115653,1.50430651,694.83,693.69,0.28831322]
[1736696122261,0.26476103,694.82,693.69,0.28831322]
[1736696122464,0.26476122,694.81,693.69,0.28831322]
[1736696122656,0.26476122,694.8,693.69,0.28831322]
[1736696122857,0.26476122,694.79,693.69,0.28831322]
[1736696123060,0.26476122,694.78,693.69,0.28831322]
[1736696123264,1.0768234,694.75,693.69,0.28831322]
[1736696123459,0.26476008,694.74,693.69,0.28831322]
[1736696124264,1.0768234,694.71,693.69,0.28831322]
[1736696124459,0.26476008,694.7,693.69,0.28831322]
[1736696125368,1.0768234,694.66,693.69,0.28831322]
[1736696125560,0.26477463,694.65,693.69,0.28831322]
[1736696126667,1.0768234,694.62,693.69,0.28831322]
[1736696126867,0.26477463,694.61,693.69,0.28831322]
[1736696127463,0.26477463,694.6,693.69,0.28831322]
[1736696127664,0.26477463,694.59,693.69,0.28831322]
[1736696127863,1.0768234,694.63,693.69,0.28831322]
[1736696128062,0.26478053,694.62,693.69,0.28831322]
[1736696128867,1.34160393,694.62,693.69,0.28831322]
[1736696129065,0.26478053,694.61,693.69,0.28831322]
[1736696130572,1.0768234,694.6,693.69,0.28831322]
[1736696130870,0.26478053,694.59,693.69,0.28831322]
[1736696131270,0.26478694,694.58,693.69,0.28831322]
[1736696131473,1.0768234,694.62,693.69,0.28831322]
[1736696131668,0.26478672,694.61,693.69,0.28831322]
[1736696132367,1.0768234,694.62,693.69,0.28831322]
[1736696132571,0.2647818,694.61,693.69,0.28831322]
[1736696133073,1.0768234,694.62,693.69,0.28831322]
[1736696133270,0.26479462,694.61,693.08,1.7661438]
[1736696133464,0.26479462,694.6,693.1,0.28855864]
[1736696133669,1.0768234,694.64,693.1,0.28855864]
[1736696133873,1.0768234,694.62,693.1,0.28855864]
[1736696134074,0.26479465,694.61,693.1,0.28855864]
[1736696135678,1.0768234,694.59,693.1,0.28855864]
[1736696135880,0.26479465,694.58,693.1,0.28855864]
[1736696136880,1.0768234,694.61,693.1,0.28855864]
[1736696137072,0.26480636,694.6,693.1,0.28855864]
[1736696137879,1.0768234,694.62,693.1,0.28855864]
[1736696138679,0.28793135,694.61,693.1,0.28855864]
[1736696139179,0.26485887,694.6,693.1,0.28855864]
[1736696140881,0.28793964,694.59,693.1,0.28855864]
[1736696141081,0.26485887,694.58,693.1,0.28855864]
[1736696141281,0.28793964,694.59,693.1,0.28855864]
[1736696145080,1.50514691,694.58,693.1,0.28855864]
[1736696150991,1.7930907,694.58,693.1,0.28855864]
[1736696153391,0.26485807,694.57,693.1,0.28855864]
[1736696154691,1.0768234,694.49,693.1,0.28855864]
[1736696154884,0.264859,694.48,693.1,0.28855864]
[1736696155487,0.26484573,694.47,693.1,0.28855864]
[1736696155686,0.26484573,694.46,693.1,0.28855864]
[1736696155892,0.26484573,694.45,693.1,0.28855864]
[1736696156194,0.26484573,694.44,693.1,0.28855864]
[1736696156493,0.26484573,694.43,693.1,0.28855864]
[1736696156687,0.26484573,694.42,693.1,0.28855864]
[1736696156891,0.26484573,694.41,693.1,0.28855864]
[1736696157091,0.26484573,694.4,693.1,0.28855864]
[1736696157291,0.26484573,694.39,693.1,0.28855864]
[1736696157492,1.34166913,694.46,693.1,0.28855864]
[1736696157694,0.26484573,694.45,693.1,0.28855864]
[1736696158295,1.0768234,694.42,693.1,0.28855864]
[1736696158491,0.26484573,694.41,693.1,0.28855864]
[1736696159296,1.34166913,694.41,693.1,0.28855864]
[1736696159498,0.26484573,694.4,693.1,0.28855864]
[1736696160204,1.0768234,694.39,693.1,0.28855864]
[1736696160495,0.26485837,694.38,693.1,0.28855864]
[1736696160695,1.0768234,694.39,693.1,0.28855864]
[1736696160999,0.26486017,694.38,693.1,0.28855864]
[1736696161198,0.26486017,694.37,693.1,0.28855864]
[1736696161499,1.0768234,694.41,693.1,0.28855864]
[1736696161691,0.26486263,694.4,693.1,0.28855864]
[1736696161892,1.0768234,694.41,693.1,0.28855864]
[1736696162099,0.26486771,694.4,693.1,0.28855864]
[1736696162300,1.0768234,694.39,693.1,0.28855864]
[1736696162494,0.26486771,694.38,693.1,0.28855864]
[1736696162699,1.0768234,694.39,693.1,0.28855864]
[1736696162899,0.26486646,694.38,693.1,0.28855864]
[1736696163195,1.0768234,694.36,693.1,0.28855864]
[1736696164000,0.26488413,694.35,693.1,0.28855864]
[1736696164699,1.0768234,694.34,693.1,0.28855864]
[1736696166505,1.0768234,694.33,693.1,0.28855864]
[1736696167604,1.0768234,694.35,693.1,0.28855864]
[1736696168604,1.0768234,694.33,693.1,0.28855864]
[1736696169505,1.0768234,694.32,693.1,0.28855864]
[1736696170405,1.0768234,694.31,693.1,0.28855864]
[1736696172205,1.0768234,694.3,693.1,0.28855864]
[1736696173410,1.0768234,694.29,693.1,0.28855864]
[1736696174410,1.0768234,694.43,693.1,0.28855864]
[1736696175313,1.0768234,694.39,693.1,0.28855864]
[1736696175906,1.0768234,694.41,693.1,0.28855864]
[1736696176810,0.28794379,694.58,693.1,0.28855864]
[1736696176811,1.0768234,694.42,693.1,0.28855864]
[1736696178817,1.0768234,694.38,693.1,0.28855864]
[1736696179814,1.0768234,694.37,693.1,0.28855864]
[1736696181511,0.28794379,694.58,693.1,0.28855864]
[1736696181512,1.0768234,694.34,693.1,0.28855864]
[1736696182819,1.0768234,694.38,693.1,0.28855864]
[1736696184516,1.0768234,694.34,693.1,0.28855864]
[1736696185618,1.0768234,694.36,693.1,0.28855864]
[1736696187614,1.50508724,694.46,693.1,0.28855864]
[1736696187615,1.0768234,694.35,693.1,0.28855864]
[1736696188514,1.0768234,694.37,693.1,0.28855864]
[1736696189220,1.0768234,694.36,693.1,0.28855864]
[1736696190221,1.0768234,694.3,693.1,0.28855864]
[1736696190920,1.0768234,694.31,693.1,0.28855864]
[1736696193023,1.0768234,694.35,693.1,0.28855864]
[1736696193923,1.0768234,694.34,693.1,0.28855864]
[1736696194718,1.0768234,694.37,693.1,0.28855864]
[1736696195720,1.0768234,694.43,693.1,0.28855864]
[1736696196923,1.0768234,694.42,693.1,0.28855864]
[1736696197520,1.0768234,694.4,693.1,0.28855864]
[1736696199322,1.50509809,694.54,693.1,0.28855864]
[1736696199323,1.0768234,694.42,693.1,0.28855864]
[1736696201127,1.0768234,694.41,693.1,0.28855864]
[1736696201923,1.0768234,694.43,693.1,0.28855864]
[1736696203127,1.50509809,694.54,693.1,0.28855864]
[1736696203128,1.0768234,694.4,693.1,0.28855864]
[1736696207340,1.0768234,694.42,693.1,0.28855864]
[1736696208734,1.0768234,694.43,693.1,0.28855864]
[1736696209543,0.28794379,694.58,693.1,0.28855864]
[1736696209544,1.0768234,694.57,693.1,0.28855864]
[1736696210444,0.28794379,694.58,693.1,0.28855864]
[1736696236555,0.28794379,694.58,693.1,1.57300506]
[1736696237459,0.28794379,694.58,693.13,1.28444642]
[1736696237756,0.28794379,694.58,693.15,0.28853783]
[1736696239160,0.28794379,694.58,693.15,3.03555158]
[1736696240260,0.28794379,694.58,693.16,2.98995918]
[1736696240461,0.28794379,694.58,693.18,0.28852534]
[1736696241460,0.28794379,694.58,693.18,1.57297176]
[1736696241962,0.28794379,694.58,693.18,4.56293094]
[1736696242263,0.28794379,694.58,693.19,1.75913316]
[1736696242465,0.28794379,694.58,693.21,0.28851286]
[1736696243362,1.0768234,694.57,693.21,0.28851286]
[1736696244458,1.0768234,694.52,693.21,0.28851286]
[1736696245562,1.0768234,694.51,693.21,1.57295928]
[1736696246866,0.28794379,694.58,693.21,1.57295928]
[1736696246867,1.0768234,694.54,693.21,0.28851286]
[1736696247566,1.0768234,694.57,693.21,0.28851286]
[1736696249364,0.28794379,694.58,693.21,0.28851286]
[1736696250468,1.0768234,694.69,693.21,0.28851286]
[1736696251469,1.0768234,694.79,693.21,0.28851286]
[1736696252464,1.50435528,694.88,693.21,0.28851286]
[1736696252465,1.0768234,694.81,693.21,0.28851286]
[1736696253169,1.0768234,694.79,693.21,0.28851286]
[1736696254060,1.0768234,694.81,693.21,0.28851286]
[1736696255065,1.50435528,694.88,693.21,0.28851286]
[1736696255066,1.0768234,694.77,693.21,0.28851286]
[1736696257270,1.0768234,694.76,693.21,0.28851286]
[1736696257863,1.0768234,694.73,693.21,0.28851286]
[1736696259870,1.0768234,694.74,693.21,0.28851286]
[1736696260371,0.26473149,694.73,693.21,0.28851286]
[1736696260771,1.0768234,694.72,693.21,0.28851286]
[1736696261773,1.0768234,694.71,693.21,0.28851286]
[1736696262876,1.0768234,694.78,693.31,1.28444642]
[1736696263977,1.0768234,694.84,693.37,1.28444642]
[1736696264979,1.0768234,694.94,693.39,0.28843796]
[1736696265673,1.5039977,694.99,693.39,0.28843796]
[1736696266678,1.0768234,695.11,693.39,0.28843796]
[1736696266979,1.50384604,695.08,693.39,0.28843796]
[1736696275192,0.26461814,695.07,693.39,0.28843796]
[1736696275489,0.26461938,695.06,693.39,0.28843796]
[1736696275792,0.26461938,695.05,693.39,0.28843796]
[1736696275988,1.50384604,695.08,693.39,0.28843796]
[1736696276287,0.2646182,695.07,693.39,0.28843796]
[1736696280186,1.50384604,695.08,693.39,0.28843796]
[1736696280386,0.2646355,695.07,693.39,0.28843796]
[1736696282088,0.26463631,695.06,693.39,0.28843796]
[1736696282399,0.26463631,695.05,693.39,0.28843796]
[1736696282595,0.26463631,695.04,693.39,0.28843796]
[1736696282796,1.50384604,695.08,693.39,0.28843796]
[1736696282989,0.26463713,695.07,693.39,0.28843796]
[1736696284695,0.26463663,695.06,693.39,0.28843796]
[1736696284901,1.50384604,695.08,693.39,0.28843796]
[1736696285097,0.26463644,695.07,693.39,0.28843796]
[1736696285494,1.50384604,695.08,693.39,0.28843796]
[1736696289702,0.2877408,695.07,693.39,0.28843796]
[1736696291904,0.26469722,695.06,693.39,0.28843796]
[1736696292803,1.34152062,695.06,693.39,0.28843796]
[1736696292998,0.26469722,695.05,693.39,0.28843796]
[1736696293204,0.26470069,695.04,693.39,0.28843796]
[1736696293404,0.26470069,695.03,693.39,0.28843796]
[1736696293704,1.0768234,694.91,693.39,0.28843796]
[1736696293908,0.26470069,694.9,693.39,0.28843796]
[1736696294503,1.50421439,694.89,693.39,0.28843796]
[1736696294802,1.0768234,694.83,693.39,0.28843796]
[1736696295104,0.26470069,694.82,693.39,0.28843796]
[1736696295705,1.0768234,694.82,693.39,0.28843796]
[1736696296004,0.2647024,694.81,693.39,0.28843796]
[1736696296600,1.0768234,694.83,693.39,0.28843796]
[1736696297401,1.0768234,694.87,693.39,0.28843796]
[1736696298605,2.58103779,694.89,693.39,0.28843796]
[1736696298806,0.26470272,694.88,693.39,0.28843796]
[1736696299007,2.58103779,694.89,693.39,0.28843796]
[1736696299308,0.26470326,694.88,693.39,0.28843796]
[1736696300301,2.58103779,694.89,693.39,0.28843796]
[1736696300705,1.50421439,694.89,693.39,0.28843796]
[1736696300904,0.26470183,694.88,693.39,0.28843796]
[1736696301305,1.50421439,694.89,693.39,0.28843796]
[1736696302703,0.26470111,694.88,693.39,0.28843796]
[1736696304510,1.50421439,694.89,693.39,0.28843796]
[1736696305605,0.26469441,694.88,693.39,0.28843796]
[1736696306813,1.50421439,694.89,693.39,0.28843796]
[1736696316713,0.26473032,694.88,693.39,0.28843796]
[1736696317619,1.0768234,694.79,693.39,0.28843796]
[1736696320621,1.0768234,694.77,693.39,0.28843796]
[1736696321721,1.0768234,694.76,693.39,0.28843796]
[1736696322522,1.0768234,694.75,693.39,0.28843796]
[1736696323417,1.0768234,694.74,693.39,0.28843796]
[1736696324521,1.0768234,694.71,693.39,0.28843796]
[1736696325320,1.0768234,694.69,693.39,0.28843796]
[1736696328434,1.0768234,694.6,693.39,0.28843796]
[1736696329727,1.0768234,694.77,693.39,0.28843796]
[1736696330624,1.0768234,694.87,693.39,0.28843796]
[1736696331630,1.0768234,694.88,693.39,0.28843796]
[1736696332532,1.0768234,694.84,693.41,1.28444642]
[1736696332729,1.0768234,694.84,693.43,0.28842132]
[1736696333529,1.0768234,694.9,693.43,1.57286774]
[1736696334629,1.0768234,694.93,693.43,0.28842132]
[1736696335029,1.0768234,694.93,693.43,2.04873012]
[1736696335227,1.0768234,694.93,693.43,0.28842132]
[1736696335428,1.0768234,694.95,693.43,3.26954054]
[1736696335631,0.26464743,694.94,693.44,1.7603088]
[1736696336130,1.0768234,694.95,693.44,1.7603088]
[1736696336633,1.0768234,694.93,693.44,1.7603088]
[1736696337731,1.0768234,694.93,693.43,0.28842132]
[1736696337931,1.0768234,694.94,693.43,0.28842132]
[1736696338128,0.26465041,694.93,693.43,0.28842132]
[1736696338829,1.0768234,694.95,693.43,0.28842132]
[1736696339030,0.26464998,694.94,693.43,0.28842132]
[1736696339732,0.26464998,694.93,693.43,0.28842132]
[1736696339934,0.26464998,694.92,693.43,0.28842132]
[1736696340134,0.26464998,694.91,693.43,0.28842132]
[1736696340434,0.26464979,694.9,693.43,0.28842132]
[1736696340629,1.0768234,694.95,693.43,0.28842132]
[1736696340835,0.26464932,694.94,693.43,0.28842132]
[1736696341135,1.34147272,694.94,693.43,0.28842132]
[1736696341335,0.26464932,694.93,693.43,0.28842132]
[1736696341535,1.0768234,694.94,693.43,3.03749381]
[1736696341728,0.26464017,694.93,693.43,3.03749381]
[1736696341928,1.0768234,694.94,693.43,3.03749381]
[1736696342234,1.0768234,694.98,693.43,0.28842132]
[1736696342635,1.0768234,694.98,693.43,1.27638189]
[1736696342832,1.0768234,694.98,693.43,3.03664085]
[1736696343228,1.0768234,695.17,693.44,2.74821953]
[1736696343429,1.0768234,695.17,693.45,2.74821953]
[1736696343632,1.0768234,695.17,693.46,1.76025896]
[1736696344031,1.0768234,695.17,693.43,0.28842132]
[1736696344232,1.50371067,695.21,693.43,0.28842132]
[1736696354143,1.0768234,695.48,693.43,0.28842132]
[1736696354442,1.50364569,695.23,693.43,0.28842132]
[1736696362546,1.0768234,695.21,693.52,1.28444642]
[1736696363253,1.0768234,695.21,693.54,0.28837558]
[1736696363451,1.0768234,695.2,693.54,0.28837558]
[1736696364452,1.0768234,695.22,693.58,1.28444642]
[1736696364650,1.0768234,695.22,693.6,0.28835063]
[1736696365449,1.0768234,695.21,693.6,1.57279705]
[1736696366254,1.0768234,695.21,693.6,3.32641773]
[1736696366449,1.50335339,695.29,693.61,3.0380671]
[1736696366450,1.0768234,695.19,693.61,3.0380671]
[1736696366652,1.0768234,695.19,693.63,0.28833816]
[1736696367053,1.0768234,695.19,693.63,2.04195884]
[1736696367450,1.0768234,695.19,693.63,0.28833816]
[1736696368256,1.0768234,695.2,693.63,0.28833816]
[1736696369055,1.0768234,695.19,693.63,0.28833816]
[1736696372257,1.0768234,695.17,693.63,0.28833816]
[1736696374460,1.0768234,695.1,693.67,1.28444642]
[1736696374655,1.0768234,695.1,693.69,0.28831322]
[1736696375156,1.0768234,695.1,693.7,1.28444642]
[1736696375353,1.0768234,695.1,693.72,0.28830075]
[1736696376559,1.0768234,695.11,693.72,0.28830075]
[1736696377557,1.3645642,695.07,693.72,1.57274717]
[1736696378463,1.0768234,695.03,693.75,1.28444642]
[1736696378756,1.0768234,695.03,693.77,0.28827997]
[1736696379261,1.0768234,695.04,693.77,0.28827997]
[1736696380360,1.0768234,695.03,693.77,0.28827997]
[1736696380955,1.0768234,695.04,693.78,1.28444642]
[1736696381154,1.0768234,695.04,693.79,0.28827166]
[1736696382960,1.0768234,695.06,693.79,0.28827166]
[1736696384462,1.0768234,695.05,693.79,0.28827166]
[1736696385260,0.2877408,695.07,693.79,0.28827166]
[1736696391868,1.3645642,695.07,693.79,0.28827166]
[1736696392767,1.0768234,695.06,693.79,0.28827166]
[1736696393367,1.3645642,695.07,693.79,0.28827166]
[1736696394371,1.0768234,695.06,693.79,0.28827166]
[1736696394966,1.0768234,695.06,693.79,1.57271808]
[1736696395162,1.0768234,695.0,693.79,1.57271808]
[1736696395765,1.0768234,695.0,693.79,0.28827166]
[1736696396564,1.0768234,694.97,693.79,0.28827166]
[1736696397565,1.0768234,694.97,693.81,1.28444642]
[1736696398373,1.0768234,694.96,693.82,1.28444642]
[1736696398770,1.0768234,694.96,693.83,0.28825504]
[1736696399571,1.0768234,694.9,693.83,0.28825504]
[1736696400273,1.0768234,694.88,693.83,0.28825504]
[1736696401373,1.0768234,694.86,693.83,0.28825504]
[1736696402369,0.2877408,695.07,693.83,0.28825504]
[1736696402370,1.0768234,694.88,693.83,0.28825504]
[1736696403269,1.0768234,694.96,693.83,0.28825504]
[1736696404174,1.0768234,694.95,693.83,0.28825504]
[1736696405276,1.0768234,695.01,693.83,0.28825504]
[1736696406977,1.0768234,695.0,693.83,0.28825504]
[1736696407774,0.2877408,695.07,693.83,0.28825504]
[1736696407775,1.0768234,694.99,693.83,0.28825504]
[1736696408574,1.0768234,695.0,693.83,0.28825504]
[1736696409875,1.0768234,694.98,693.83,0.28825504]
[1736696410681,1.0768234,694.99,693.83,0.28825504]
[1736696411880,1.0768234,695.0,693.83,0.28825504]
[1736696412979,1.0768234,695.01,693.83,0.28825504]
[1736696413976,0.2877408,695.07,693.83,0.28825504]
[1736696413977,1.0768234,695.0,693.83,0.28825504]
[1736696416874,1.0768234,695.01,693.83,0.28825504]
[1736696417883,1.0768234,695.03,693.83,0.28825504]
[1736696420482,1.0768234,695.04,693.83,0.28825504]
[1736696421383,1.0768234,695.03,693.83,0.28825504]
[1736696422485,1.0768234,694.97,693.83,0.28825504]
[1736696423182,1.0768234,694.98,693.83,0.28825504]
[1736696423982,1.0768234,694.97,693.83,0.28825504]
[1736696424786,1.0768234,694.98,693.83,0.28825504]
[1736696426887,1.0768234,695.0,693.83,0.28825504]
[1736696429087,1.0768234,694.99,693.83,0.28825504]
[1736696430796,1.0768234,694.97,693.83,0.28825504]
[1736696432792,1.0768234,694.96,693.83,0.28825504]
[1736696433395,1.0768234,694.97,693.83,0.28825504]
[1736696438406,1.0768234,694.98,693.83,0.28825504]
[1736696439303,1.0768234,695.02,693.83,0.28825504]
[1736696441204,1.0768234,695.04,693.83,0.28825504]
[1736696442502,1.0768234,695.03,693.83,0.28825504]
[1736696443101,1.0768234,695.01,693.83,0.28825504]
[1736696443801,1.0768234,695.0,693.83,0.28825504]
[1736696444902,1.0768234,694.99,693.83,0.28825504]
[1736696446602,1.0768234,694.98,693.83,0.28825504]
[1736696448405,1.0768234,694.95,693.83,0.28825504]
[1736696449003,1.0768234,694.9,693.83,0.28825504]
[1736696450009,1.0768234,695.05,693.83,0.28825504]
[1736696451309,1.5038298,695.06,693.83,0.28825504]
[1736696451310,1.0768234,695.0,693.83,0.28825504]
[1736696452005,1.0768234,695.02,693.83,0.28825504]
[1736696453009,1.0768234,694.97,693.83,0.28825504]
[1736696453807,0.26468164,694.96,693.83,0.28825504]
[1736696454213,1.0768234,694.95,693.83,0.28825504]
[1736696454511,0.26468164,694.94,693.83,0.28825504]
[1736696455207,1.0768234,694.77,693.83,0.28825504]
[1736696456312,1.0768234,694.78,693.83,0.28825504]
[1736696457108,1.0768234,694.8,693.83,0.28825504]
[1736696457809,1.0768234,694.83,693.83,0.28825504]
[1736696460208,1.0768234,694.8,693.83,0.28825504]
[1736696462413,1.0768234,694.81,693.83,0.28825504]
[1736696465016,1.0768234,694.82,693.83,0.28825504]
[1736696465608,0.26468685,694.81,693.83,0.28825504]
[1736696466009,1.0768234,694.79,693.83,0.28825504]
[1736696466409,0.26469508,694.78,693.83,0.28825504]
[1736696468115,1.0768234,694.75,693.83,0.28825504]
[1736696468614,0.26471196,694.74,693.83,0.28825504]
[1736696470718,1.0768234,694.76,693.83,0.28825504]
[1736696470917,0.26470961,694.75,693.83,0.28825504]
[1736696471318,0.26471002,694.74,693.83,0.28825504]
[1736696471514,1.0768234,694.78,693.83,0.28825504]
[1736696471716,0.26470937,694.77,693.83,0.28825504]
[1736696475014,1.34153277,694.77,693.83,0.28825504]